fUSD/lending_fUSD_20240406
["ID","MTS","AMOUNT","RATE_DAILY","PERIOD"]
[321660481,1712361614973,7042.2769,0.00022912,2]
[321660482,1712361700456,500.0,0.0002301,2]
[321660483,1712361701470,351832.52508606,0.0002288,2]
[321660484,1712361701495,1225363.1423237,0.0002288,2]
[321660485,1712361701517,2000000.0,0.0002288,2]
[321660486,1712361701547,300000.0,0.0002288,2]
[321660487,1712361701568,2000000.0,0.0002288,2]
[321660488,1712362084484,416.48,0.00022869,3]
[321660489,1712362095490,208.24,0.00022869,3]
[321660490,1712362106148,624.75,0.00021052,3]
[321660491,1712362111277,298.17067606,0.00020849,2]
[321660492,1712362115044,250.31075792,0.00020849,2]
[321660493,1712362117001,155.42030701,0.00020849,2]
[321660494,1712362118034,214.33271192,0.00020849,2]
[321660495,1712362122270,332.12884585,0.00020963,2]
[321660496,1712362131246,315.63071194,0.00020848,2]
[321660497,1712362147027,6456.07923574,0.00020961,2]
[321660498,1712362165162,-155.0,0.00021053,2]
[321660499,1712362165182,-155.0,0.00021053,2]
[321660500,1712362165203,-205.79634065,0.00021053,2]
[321660501,1712362165223,-155.0,0.00021053,2]
[321660502,1712362165241,-1000.0,0.00021053,2]
[321660503,1712362165261,-887.72115935,0.00021054,2]
[321660504,1712362173413,14787.0684,0.00020967,2]
[321660505,1712362196172,150.0,0.00020787,2]
[321660510,1712362225861,248.468332,0.00020822,2]
[321660523,1712362231565,-217.4004818,0.00021045,2]
[321660524,1712362231575,-1164.79675947,0.00021045,2]
[321660525,1712362231776,-75.86624394,0.00021045,2]
[321660526,1712362231786,-262.97889526,0.00021046,2]
[321660527,1712362231795,-266.62366915,0.00021046,2]
[321660528,1712362231805,-453.82911324,0.00021046,2]
[321660533,1712362237564,-155.0,0.00021044,2]
[321660534,1712362237575,-155.0,0.00021044,2]
[321660535,1712362237584,-4010.2452831,0.00021046,2]
[321660536,1712362237594,-295.74630524,0.00021047,2]
[321660537,1712362237603,-500.0,0.00021047,2]
[321660538,1712362237613,-4393.7411243,0.00021047,2]
[321660539,1712362237622,-1210.30084464,0.00021048,2]
[321660540,1712362237631,-735.98049015,0.00021048,2]
[321660541,1712362237641,-1057.50232524,0.00021048,2]
[321660542,1712362237650,-155.0,0.00021048,2]
[321660543,1712362237660,-404.47743846,0.00021048,2]
[321660544,1712362237670,-4318.70766298,0.00021048,2]
[321660545,1712362237679,-571.86675709,0.00021048,2]
[321660546,1712362237690,-292.6,0.00021048,2]
[321660547,1712362237699,-292.6,0.00021048,2]
[321660548,1712362237709,-292.6,0.00021048,2]
[321660549,1712362237718,-292.6,0.00021048,2]
[321660550,1712362237728,-425.8673703,0.00021049,2]
[321660551,1712362237740,-4310.00888336,0.00021049,2]
[321660552,1712362237750,-155.0,0.00021049,2]
[321660553,1712362237759,-292.6,0.00021049,2]
[321660554,1712362237770,-292.6,0.00021049,2]
[321660555,1712362237781,-292.6,0.00021049,2]
[321660556,1712362237791,-537.64314348,0.0002105,2]
[321660557,1712362237801,-155.0,0.0002105,2]
[321660558,1712362237812,-342.29828772,0.0002105,2]
[321660559,1712362237822,-155.0,0.0002105,2]
[321660560,1712362237831,-164.01340579,0.00021051,2]
[321660561,1712362237841,-2986.9437887,0.00021051,2]
[321660562,1712362237850,-550.38240893,0.00021051,2]
[321660563,1712362237860,-23283.26082031,0.00021052,2]
[321660565,1712362237869,-277.83238153,0.00021057,2]
[321660567,1712362237878,-188.7540932,0.00021057,2]
[321660569,1712362237887,-155.31728392,0.00021057,2]
[321660571,1712362237897,-500.0,0.00021057,2]
[321660572,1712362237907,-500.0,0.00021057,2]
[321660573,1712362237916,-500.0,0.00021057,2]
[321660574,1712362237927,-299.35722131,0.00021057,2]
[321660575,1712362237937,-500.0,0.00021057,2]
[321660576,1712362237956,-500.0,0.00021057,2]
[321660577,1712362237968,-500.0,0.00021057,2]
[321660578,1712362237979,-804885.59637895,0.00021058,2]
[321660579,1712362237988,-410.70648513,0.00021058,2]
[321660580,1712362237998,-500.0,0.00021058,2]
[321660581,1712362238008,-150.8772107,0.00021058,2]
[321660582,1712362238017,-500.0,0.00021058,2]
[321660583,1712362238027,-500.0,0.00021058,2]
[321660584,1712362238036,-500.0,0.00021058,2]
[321660585,1712362238046,-368.5444239,0.00021058,2]
[321660586,1712362238056,-2048.44892354,0.00021059,2]
[321660587,1712362238065,-155.0,0.0002106,2]
[321660588,1712362238074,-155.0,0.0002106,2]
[321660589,1712362238084,-6851.88654494,0.00021062,2]
[321660590,1712362238093,-342.32,0.00021063,2]
[321660591,1712362238102,-624.69303094,0.00021065,2]
[321660592,1712362238112,-451.18609594,0.00021065,2]
[321660593,1712362238122,-3164.1443892,0.00021065,2]
[321660594,1712362238132,-321.65,0.00021075,2]
[321660595,1712362238142,-13434.71,0.0002124,2]
[321660596,1712362238151,-6456.07923569,0.00021475,2]
[321660597,1712362238161,-248.468332,0.00021644,2]
[321660598,1712362238170,-310.28,0.00021862,2]
[321660599,1712362238179,-292.6,0.00021978,2]
[321660600,1712362238189,-6456.07923569,0.00021988,2]
[321660601,1712362238198,-782.92013336,0.00022,2]
[321660602,1712362238207,-188.13123206,0.00022,2]
[321660603,1712362238216,-756.0316743,0.00022,2]
[321660604,1712362238225,-205.15,0.00022111,2]
[321660605,1712362238235,-2154.91,0.00022207,2]
[321660606,1712362238245,-248.468332,0.00022466,2]
[321660607,1712362238254,-6456.07923569,0.00022502,2]
[321660608,1712362238264,-200.0,0.00022642,2]
[321660609,1712362238273,-664.67612786,0.00022648,2]
[321660610,1712362238283,-250.0,0.00022651,2]
[321660611,1712362238293,-233.25225643,0.00022763,2]
[321660612,1712362238303,-14192.61085636,0.00022779,2]
[321660613,1712362238312,-152.16591649,0.0002278,2]
[321660614,1712362238322,-2871.15894505,0.0002278,2]
[321660615,1712362238332,-167.08182948,0.0002278,2]
[321660616,1712362238341,-14306.17777742,0.0002278,2]
[321660617,1712362238352,-3751.74326594,0.0002278,2]
[321660618,1712362238361,-1287.11061989,0.0002278,2]
[321660619,1712362238371,-2395.8065918,0.0002278,2]
[321660620,1712362238385,-184.6466808,0.0002278,2]
[321660621,1712362238394,-1276.91781878,0.00022791,2]
[321660622,1712362238404,-875.53419127,0.00022792,2]
[321660623,1712362238414,-800.0,0.00022849,2]
[321660624,1712362238424,-166.97,0.00022866,2]
[321660625,1712362238435,-571.86675709,0.00022869,2]
[321660626,1712362238447,-292.6,0.00022869,2]
[321660627,1712362238457,-292.6,0.00022869,2]
[321660628,1712362238470,-571.86675709,0.0002287,2]
[321660629,1712362238479,-164.80637122,0.00022877,2]
[321660630,1712362238489,-324.93838707,0.00022877,2]
[321660631,1712362238498,-335.28945118,0.00022877,2]
[321660632,1712362238508,-2347.06885895,0.00022877,2]
[321660633,1712362238517,-808.30329148,0.00022877,2]
[321660634,1712362238526,-155.0,0.00022877,2]
[321660635,1712362238536,-155.00001428,0.00022877,2]
[321660636,1712362238547,-160.72367697,0.00022877,2]
[321660637,1712362238557,-162.5270178,0.00022877,2]
[321660638,1712362238567,-896.04571194,0.00022877,2]
[321660639,1712362238576,-562.84903058,0.00022877,2]
[321660640,1712362238585,-1720.7273304,0.00022877,2]
[321660641,1712362238594,-188.24799704,0.00022877,2]
[321660642,1712362238603,-155.84776155,0.00022877,2]
[321660643,1712362238612,-155.24730464,0.00022877,2]
[321660644,1712362238622,-182.02225421,0.00022877,2]
[321660645,1712362238631,-157.15123997,0.00022877,2]
[321660646,1712362238640,-161.13054783,0.00022877,2]
[321660647,1712362238650,-155.43908341,0.00022877,2]
[321660648,1712362238662,-200.71401412,0.00022877,2]
[321660649,1712362238672,-350.76102204,0.00022877,2]
[321660650,1712362238681,-155.1409266,0.00022877,2]
[321660651,1712362238691,-170.74360191,0.00022877,2]
[321660652,1712362238700,-302.43180403,0.00022877,2]
[321660653,1712362238710,-212.83900305,0.00022877,2]
[321660654,1712362238719,-212.8531606,0.00022877,2]
[321660655,1712362238728,-155.90186844,0.00022877,2]
[321660656,1712362238738,-155.52918045,0.00022877,2]
[321660657,1712362238747,-203.43750893,0.00022877,2]
[321660658,1712362238756,-204.4825801,0.00022877,2]
[321660659,1712362238766,-178.02575952,0.00022877,2]
[321660660,1712362238775,-197.32118549,0.00022877,2]
[321660661,1712362238785,-155.6778293,0.00022877,2]
[321660662,1712362238796,-224.23271556,0.00022877,2]
[321660663,1712362238805,-201.40246095,0.00022877,2]
[321660664,1712362238814,-246.12592559,0.00022877,2]
[321660665,1712362238824,-282.83715739,0.00022877,2]
[321660666,1712362238833,-245.92312262,0.00022877,2]
[321660667,1712362238842,-305.82413299,0.00022877,2]
[321660668,1712362238852,-191.38068228,0.00022877,2]
[321660669,1712362238861,-386.79912678,0.00022877,2]
[321660670,1712362238871,-155.0,0.00022877,2]
[321660671,1712362238880,-156.3246791,0.00022877,2]
[321660672,1712362238889,-155.60832782,0.00022877,2]
[321660673,1712362238899,-155.0,0.00022877,2]
[321660674,1712362238909,-210.10867402,0.00022877,2]
[321660675,1712362238919,-232.61475388,0.00022877,2]
[321660676,1712362238928,-175.31276833,0.00022877,2]
[321660677,1712362238942,-158.50119617,0.00022877,2]
[321660678,1712362238951,-155.46808944,0.00022877,2]
[321660679,1712362238961,-200.05738958,0.00022877,2]
[321660680,1712362238970,-200.38583659,0.00022877,2]
[321660681,1712362238979,-155.46840897,0.00022877,2]
[321660682,1712362238988,-2009.05416545,0.00022877,2]
[321660683,1712362238998,-236.84231271,0.00022877,2]
[321660684,1712362239007,-548.44327004,0.00022878,2]
[321660685,1712362239016,-260.13824553,0.00022878,2]
[321660686,1712362239025,-287.3794677,0.00022878,2]
[321660687,1712362239035,-287.47867473,0.00022878,2]
[321660688,1712362239045,-276.14176002,0.00022878,2]
[321660689,1712362239054,-157.55729644,0.00022878,2]
[321660704,1712362239319,-156.90775312,0.00022878,2]
[321660707,1712362239328,-155.79908313,0.00022878,2]
[321660709,1712362239337,-155.40295107,0.00022878,2]
[321660711,1712362239346,-157.99812555,0.00022878,2]
[321660713,1712362239355,-185.3357629,0.00022878,2]
[321660715,1712362239364,-284.23022734,0.00022878,2]
[321660717,1712362239373,-353.0644796,0.00022878,2]
[321660718,1712362239382,-155.0,0.00022878,2]
[321660720,1712362239391,-392.96735661,0.00022878,2]
[321660721,1712362239401,-155.68955653,0.00022878,2]
[321660722,1712362239410,-307.62864947,0.00022878,2]
[321660723,1712362239419,-307565.30764767,0.00022879,2]
[321660724,1712362239433,-653.04493,0.00022879,2]
[321660725,1712362239963,-50.4988889,0.00022879,2]
[321660726,1712362239994,-20212.26654746,0.00022879,2]
[321660727,1712362240006,-260499.98276827,0.00022879,2]
[321660728,1712362240016,-6555372.52069078,0.0002288,2]
[321660729,1712362240026,-19606.21101507,0.0002288,2]
[321660730,1712362240036,-219.87,0.00022892,2]
[321660731,1712362240046,-720.44,0.000229,2]
[321660732,1712362240056,-1243.3,0.000229,2]
[321660733,1712362240065,-875.5341912,0.00022984,2]
[321660734,1712362240075,-198.65629897,0.00023,2]
[321660735,1712362240085,-6456.07923569,0.00023016,2]
[321660736,1712362240095,-10000.0,0.00023137,2]
[321660737,1712362240105,-163.77,0.00023165,2]
[321660738,1712362240115,-875.5341912,0.00023175,2]
[321660739,1712362240124,-2871.15894501,0.0002328,2]
[321660740,1712362240134,-248.468332,0.00023288,2]
[321660741,1712362240143,-169.31,0.00023337,2]
[321660742,1712362240153,-455.67,0.00023337,2]
[321660743,1712362240163,-321.65,0.00023339,2]
[321660744,1712362240173,-163.77,0.00023366,2]
[321660745,1712362240183,-875.5341912,0.00023367,2]
[321660746,1712362240194,-779.06319665,0.00023401,2]
[321660747,1712362240203,-499.99,0.00023414,2]
[321660748,1712362240213,-200.0,0.00023435,2]
[321660749,1712362240222,-200.0,0.00023435,2]
[321660750,1712362240231,-200.0,0.00023435,2]
[321660751,1712362240241,-200.0,0.00023435,2]
[321660752,1712362240250,-200.0,0.00023435,2]
[321660753,1712362240260,-162.0,0.00023435,2]
[321660754,1712362240269,-1000.0,0.00023435,2]
[321660755,1712362240279,-152.16591646,0.00023487,2]
[321660756,1712362240288,-6456.07923569,0.0002353,2]
[321660757,1712362240298,-875.5341912,0.00023559,2]
[321660758,1712362240307,-163.77,0.00023567,2]
[321660759,1712362240317,-1400.75922573,0.00023678,2]
[321660760,1712362240328,-875.5341912,0.0002375,2]
[321660761,1712362240341,-163.77,0.00023769,2]
[321660762,1712362240350,-2871.15894501,0.0002378,2]
[321660763,1712362240361,-14306.17777741,0.0002379,2]
[321660764,1712362240370,-3751.74326593,0.0002379,2]
[321660765,1712362240382,-1287.11061988,0.0002379,2]
[321660766,1712362240394,-2395.8065918,0.0002379,2]
[321660767,1712362240405,-183.49311604,0.000239,2]
[321660768,1712362240415,-183.49311604,0.000239,2]
[321660769,1712362240426,-183.49311604,0.000239,2]
[321660770,1712362240436,-183.49311604,0.000239,2]
[321660771,1712362240447,-183.49311604,0.000239,2]
[321660772,1712362240457,-183.49311604,0.000239,2]
[321660773,1712362240467,-183.49311604,0.000239,2]
[321660774,1712362240480,-183.49311604,0.000239,2]
[321660775,1712362240490,-183.49311604,0.000239,2]
[321660776,1712362240499,-183.49311604,0.000239,2]
[321660777,1712362240508,-183.49311604,0.000239,2]
[321660778,1712362240518,-183.49311604,0.000239,2]
[321660779,1712362240528,-183.49311604,0.000239,2]
[321660780,1712362240537,-183.49311604,0.000239,2]
[321660781,1712362240549,-183.49311604,0.000239,2]
[321660782,1712362240558,-183.49311604,0.000239,2]
[321660783,1712362240568,-183.49311604,0.000239,2]
[321660784,1712362240577,-183.49311604,0.000239,2]
[321660785,1712362240587,-183.49311604,0.000239,2]
[321660786,1712362240597,-183.49311604,0.000239,2]
[321660787,1712362240607,-183.49311604,0.000239,2]
[321660788,1712362240616,-183.49311604,0.000239,2]
[321660789,1712362240626,-183.49311604,0.000239,2]
[321660790,1712362240635,-183.49311604,0.000239,2]
[321660791,1712362240644,-183.49311604,0.000239,2]
[321660792,1712362240654,-183.49311604,0.000239,2]
[321660793,1712362240664,-183.49311604,0.000239,2]
[321660794,1712362240673,-183.49311604,0.000239,2]
[321660795,1712362240683,-183.49311604,0.000239,2]
[321660796,1712362240692,-183.49311604,0.000239,2]
[321660797,1712362240702,-183.49311604,0.000239,2]
[321660798,1712362240711,-183.49311604,0.000239,2]
[321660799,1712362240722,-183.49311604,0.000239,2]
[321660800,1712362240731,-183.49311604,0.000239,2]
[321660801,1712362240740,-183.49311604,0.000239,2]
[321660802,1712362240750,-183.49311604,0.000239,2]
[321660803,1712362240759,-183.49311604,0.000239,2]
[321660804,1712362240769,-183.49311604,0.000239,2]
[321660805,1712362240778,-183.49311604,0.000239,2]
[321660806,1712362240788,-183.49311604,0.000239,2]
[321660807,1712362240798,-183.49311604,0.000239,2]
[321660808,1712362240808,-183.49311604,0.000239,2]
[321660809,1712362240818,-183.49311604,0.000239,2]
[321660810,1712362240829,-183.49311604,0.000239,2]
[321660811,1712362240839,-183.49311604,0.000239,2]
[321660812,1712362240849,-183.49311604,0.000239,2]
[321660813,1712362240859,-183.49311604,0.000239,2]
[321660814,1712362240868,-183.49311604,0.000239,2]
[321660815,1712362240878,-183.49311604,0.000239,2]
[321660816,1712362240887,-183.49311604,0.000239,2]
[321660817,1712362240896,-183.49311604,0.000239,2]
[321660818,1712362240905,-183.49311604,0.000239,2]
[321660819,1712362240915,-183.49311604,0.000239,2]
[321660820,1712362240924,-183.49311604,0.000239,2]
[321660821,1712362240934,-183.49311604,0.000239,2]
[321660822,1712362240944,-183.49311604,0.000239,2]
[321660823,1712362240953,-183.49311604,0.000239,2]
[321660824,1712362240963,-183.49311604,0.000239,2]
[321660825,1712362240972,-183.49311604,0.000239,2]
[321660826,1712362240981,-183.49311604,0.000239,2]
[321660827,1712362240991,-183.49311604,0.000239,2]
[321660828,1712362241002,-183.49311604,0.000239,2]
[321660829,1712362241012,-183.49311604,0.000239,2]
[321660830,1712362241022,-183.49311604,0.000239,2]
[321660831,1712362241031,-183.49311604,0.000239,2]
[321660832,1712362241042,-183.49311604,0.000239,2]
[321660833,1712362241052,-183.49311604,0.000239,2]
[321660834,1712362241061,-183.49311604,0.000239,2]
[321660835,1712362241070,-183.49311604,0.000239,2]
[321660836,1712362241081,-183.49311604,0.000239,2]
[321660837,1712362241090,-183.49311604,0.000239,2]
[321660838,1712362241100,-183.49311604,0.000239,2]
[321660839,1712362241109,-183.49311604,0.000239,2]
[321660840,1712362241118,-183.49311604,0.000239,2]
[321660841,1712362241128,-183.49311604,0.000239,2]
[321660842,1712362241137,-183.49311604,0.000239,2]
[321660843,1712362241146,-183.49311604,0.000239,2]
[321660844,1712362241155,-183.49311604,0.000239,2]
[321660845,1712362241165,-183.49311604,0.000239,2]
[321660846,1712362241175,-183.49311604,0.000239,2]
[321660847,1712362241185,-183.49311604,0.000239,2]
[321660848,1712362241195,-183.49311604,0.000239,2]
[321660849,1712362241203,-183.49311604,0.000239,2]
[321660850,1712362241213,-183.49311604,0.000239,2]
[321660851,1712362241222,-183.49311604,0.000239,2]
[321660852,1712362241231,-183.49311604,0.000239,2]
[321660853,1712362241240,-183.49311604,0.000239,2]
[321660854,1712362241249,-183.49311604,0.000239,2]
[321660855,1712362241259,-183.49311604,0.000239,2]
[321660856,1712362241268,-183.49311604,0.000239,2]
[321660857,1712362241277,-183.49311604,0.000239,2]
[321660858,1712362241286,-183.49311604,0.000239,2]
[321660859,1712362241296,-183.49311604,0.000239,2]
[321660860,1712362241305,-183.49311604,0.000239,2]
[321660861,1712362241315,-183.49311604,0.000239,2]
[321660862,1712362241323,-183.49311604,0.000239,2]
[321660863,1712362241333,-183.49311604,0.000239,2]
[321660864,1712362241342,-183.49311604,0.000239,2]
[321660865,1712362241352,-183.49311604,0.000239,2]
[321660866,1712362241362,-183.49311604,0.000239,2]
[321660867,1712362241371,-3535.08242536,0.000239,2]
[321660868,1712362241381,-3535.08242536,0.000239,2]
[321660869,1712362241392,-3535.08242536,0.000239,2]
[321660870,1712362241402,-3535.08242536,0.000239,2]
[321660871,1712362241411,-3535.08242536,0.000239,2]
[321660872,1712362241422,-3535.08242536,0.000239,2]
[321660873,1712362241431,-3535.08242536,0.000239,2]
[321660874,1712362241441,-3535.08242536,0.000239,2]
[321660875,1712362241450,-875.5341912,0.00023942,2]
[321660876,1712362241459,-163.77,0.0002397,2]
[321660877,1712362241470,-224.46237227,0.00024,2]
[321660878,1712362241482,-6456.07923569,0.00024043,2]
[321660879,1712362241492,-248.468332,0.0002411,2]
[321660880,1712362241501,-1076.7,0.00024112,2]
[321660881,1712362241511,-410.86,0.00024112,2]
[321660882,1712362241522,-410.86,0.00024112,2]
[321660883,1712362241531,-905.28,0.00024112,2]
[321660884,1712362241541,-410.86,0.00024112,2]
[321660885,1712362241551,-905.28,0.00024112,2]
[321660886,1712362241560,-905.28,0.00024112,2]
[321660887,1712362241570,-905.28,0.00024112,2]
[321660888,1712362241579,-191.81,0.00024112,2]
[321660889,1712362241589,-1840.46,0.00024112,2]
[321660890,1712362241598,-875.5341912,0.00024133,2]
[321660891,1712362241607,-163.77,0.00024171,2]
[321660892,1712362241617,-152.16591646,0.00024193,2]
[321660893,1712362241626,-500.0,0.00024237,2]
[321660894,1712362241635,-832.96,0.00024239,3]
[321660895,1712362241644,-416.48,0.00024239,3]
[321660896,1712362241654,-2871.15894501,0.00024279,2]
[321660897,1712362241663,-875.5341912,0.00024325,2]
[321660898,1712362241672,-7250.40677587,0.00024344,2]
[321660899,1712362241681,-163.77,0.00024372,2]
[321660900,1712362241692,-259.2,0.00024374,2]
[321660901,1712362241701,-150.0,0.00024496,2]
[321660902,1712362241711,-280.49551141,0.000245,2]
[321660903,1712362241720,-875.5341912,0.00024517,2]
[321660904,1712362241729,-6456.07923569,0.00024557,2]
[321660905,1712362241739,-720.44,0.000246,2]
[321660906,1712362241749,-1243.3,0.000246,2]
[321660907,1712362241758,-1000.0,0.000246,2]
[321660908,1712362241767,-4689.25683537,0.00024651,2]
[321660909,1712362241777,-965.0,0.00024654,2]
[321660910,1712362241786,-539.0,0.00024654,2]
[321660911,1712362241796,-1257.0,0.00024654,2]
[321660912,1712362241805,-434.0,0.00024654,2]
[321660913,1712362241815,-281.864,0.00024654,2]
[321660914,1712362241825,-1942.0,0.00024654,2]
[321660915,1712362241835,-805.0,0.00024654,2]
[321660916,1712362241844,-606.0,0.00024654,2]
[321660917,1712362241853,-150.0,0.00024654,2]
[321660918,1712362241863,-3033.0,0.00024654,2]
[321660919,1712362241872,-397.0,0.00024654,2]
[321660920,1712362241882,-1467.0,0.00024654,2]
[321660921,1712362241892,-1139.0,0.00024654,2]
[321660922,1712362241901,-279.084,0.00024654,2]
[321660923,1712362241911,-1632.0,0.00024654,2]
[321660924,1712362241920,-2432.0,0.00024654,2]
[321660925,1712362241929,-207.0,0.00024654,2]
[321660926,1712362241938,-214.0,0.00024654,2]
[321660927,1712362241948,-500.0,0.00024657,2]
[321660928,1712362241958,-500.0,0.00024657,2]
[321660929,1712362241967,-500.0,0.00024657,2]
[321660930,1712362241976,-500.0,0.00024657,2]
[321660931,1712362241986,-500.0,0.00024657,2]
[321660932,1712362241997,-500.0,0.00024657,2]
[321660933,1712362242008,-500.0,0.00024657,2]
[321660934,1712362242017,-500.0,0.00024657,2]
[321660935,1712362242027,-500.0,0.00024657,2]
[321660936,1712362242036,-500.0,0.00024657,2]
[321660937,1712362242045,-500.0,0.00024657,2]
[321660938,1712362242054,-500.0,0.00024657,2]
[321660939,1712362242063,-500.0,0.00024657,2]
[321660940,1712362242072,-500.0,0.00024657,2]
[321660941,1712362242082,-500.0,0.00024657,2]
[321660942,1712362242091,-500.0,0.00024657,2]
[321660943,1712362242100,-500.0,0.00024657,2]
[321660944,1712362242110,-500.0,0.00024657,2]
[321660945,1712362242119,-500.0,0.00024657,2]
[321660946,1712362242128,-500.0,0.00024657,2]
[321660947,1712362242138,-500.0,0.00024657,2]
[321660948,1712362242147,-500.0,0.00024657,2]
[321660950,1712362242157,-330.42106326,0.00024657,2]
[321660951,1712362242166,-500.0,0.00024657,2]
[321660952,1712362242176,-500.0,0.00024657,2]
[321660953,1712362242186,-500.0,0.00024657,2]
[321660954,1712362242195,-500.0,0.00024657,2]
[321660955,1712362242204,-500.0,0.00024657,2]
[321660956,1712362242214,-500.0,0.00024657,2]
[321660957,1712362242223,-500.0,0.00024657,2]
[321660958,1712362242232,-500.0,0.00024657,2]
[321660959,1712362242242,-500.0,0.00024657,2]
[321660960,1712362242250,-500.0,0.00024657,2]
[321660961,1712362242260,-500.0,0.00024657,2]
[321660962,1712362242269,-500.0,0.00024657,2]
[321660963,1712362242279,-500.0,0.00024657,2]
[321660964,1712362242288,-356.0762807,0.00024657,2]
[321660965,1712362242297,-630.83,0.00024657,2]
[321660966,1712362242306,-630.83,0.00024657,2]
[321660967,1712362242316,-630.83,0.00024657,2]
[321660968,1712362242324,-630.83,0.00024657,2]
[321660969,1712362242333,-630.83,0.00024657,2]
[321660970,1712362242343,-630.83,0.00024657,2]
[321660971,1712362242352,-630.83,0.00024657,2]
[321660972,1712362242361,-630.83,0.00024657,2]
[321660973,1712362242370,-630.83,0.00024657,2]
[321660974,1712362242380,-630.83,0.00024657,2]
[321660975,1712362242389,-630.83,0.00024657,2]
[321660976,1712362242398,-630.83,0.00024657,2]
[321660977,1712362242407,-630.83,0.00024657,2]
[321660978,1712362242416,-630.83,0.00024657,2]
[321660979,1712362242426,-630.83,0.00024657,2]
[321660980,1712362242434,-630.83,0.00024657,2]
[321660981,1712362242444,-630.83,0.00024657,2]
[321660982,1712362242453,-500.0,0.00024657,2]
[321660983,1712362242462,-500.0,0.00024657,2]
[321660984,1712362242474,-630.83,0.00024657,2]
[321660985,1712362242483,-500.0,0.00024657,2]
[321660986,1712362242493,-630.83,0.00024657,2]
[321660987,1712362242503,-630.83,0.00024657,2]
[321660988,1712362242513,-630.83,0.00024657,2]
[321660989,1712362242522,-630.83,0.00024657,2]
[321660990,1712362242531,-630.83,0.00024657,2]
[321660991,1712362242540,-630.88577257,0.00024657,2]
[321660992,1712362242551,-1336.1,0.00024657,2]
[321660993,1712362242561,-1336.1,0.00024657,2]
[321660994,1712362242571,-1336.1,0.00024657,2]
[321660995,1712362242581,-1336.1,0.00024657,2]
[321660996,1712362242590,-802.49,0.00024657,2]
[321660997,1712362242600,-1336.1,0.00024657,2]
[321660998,1712362242610,-802.49,0.00024657,2]
[321660999,1712362242619,-802.49,0.00024657,2]
[321661000,1712362242628,-1336.1,0.00024657,2]
[321661001,1712362242638,-802.49,0.00024657,2]
[321661002,1712362242647,-1336.1,0.00024657,2]
[321661003,1712362242656,-802.49,0.00024657,2]
[321661004,1712362242665,-1336.1,0.00024657,2]
[321661005,1712362242674,-1336.1,0.00024657,2]
[321661006,1712362242683,-802.49,0.00024657,2]
[321661007,1712362242693,-1336.1,0.00024657,2]
[321661008,1712362242702,-1336.1,0.00024657,2]
[321661009,1712362242710,-802.49,0.00024657,2]
[321661010,1712362242719,-1336.1,0.00024657,2]
[321661011,1712362242729,-1336.1,0.00024657,2]
[321661012,1712362242874,-802.49,0.00024657,2]
[321661013,1712362242903,-1336.1,0.00024657,2]
[321661014,1712362242913,-802.49,0.00024657,2]
[321661016,1712362242922,-802.49,0.00024657,2]
[321661018,1712362242931,-1336.1,0.00024657,2]
[321661020,1712362242940,-1336.1,0.00024657,2]
[321661022,1712362242950,-802.49,0.00024657,2]
[321661024,1712362242959,-1336.1,0.00024657,2]
[321661025,1712362242967,-802.49,0.00024657,2]
[321661027,1712362242977,-1336.1,0.00024657,2]
[321661028,1712362242986,-1336.1,0.00024657,2]
[321661029,1712362242998,-802.49,0.00024657,2]
[321661030,1712362243007,-1336.1,0.00024657,2]
[321661031,1712362243017,-802.49,0.00024657,2]
[321661032,1712362243027,-1336.1,0.00024657,2]
[321661034,1712362243037,-802.49,0.00024657,2]